Cogmind - Beta 14 @@@ ROGUE MODE // 2024.12.11 @ 12:19:14 Player: Pitt Result: Destroyed by X-62 Marksman with Pulse Rifle Performance ------------- Evolutions (2) 1000 Regions Visited (4) 800 Robots Destroyed (52) 260 Value Destroyed (1344) 1344 Prototype IDs (0) 0 Alien Tech Used (0) 0 Bonus (0) 0 TOTAL SCORE: 3404 Bonus ------- None Cogmind --------- Core Integrity 0/550 Matter 300/300 Energy 290/290 System Corruption 0% Temperature Cool (9) Movement Core (400) Ox7 Location -8/Materials Parts ------- > --- POWER (1) -------- Improved Deuterium Engine > --- PROPULSION (3) --- (None) > --- UTILITY (5) ------ Medium Storage Unit Weight Redist. System Hacking Suite > --- WEAPON (2) ------- Katana > --- INVENTORY (10) --- Improved Ion Engine Titanium Leg Medium Storage Unit Machine Analyzer Transmission Jammer ECM Suite Pulse Rifle Heavy Assault Rifle Datajack Mining Laser Peak State ------------ > --- POWER ------------ Light Nuclear Core > --- PROPULSION ------- Aluminum Leg Improved Aluminum Leg Carbon-fiber Leg > --- UTILITY ---------- Improved Heat Sink Medium Storage Unit Weight Redist. System Structural Scanner Hacking Suite > --- WEAPON ----------- Particle Cannon Ion Cannon > --- INVENTORY -------- Titanium Leg Medium Storage Unit Machine Analyzer Transmission Jammer ECM Suite Pulse Rifle Datajack Mining Laser Katana [Rating: 26] Favorites ----------- Power Light Ion Engine Engine Light Ion Engine Power Core Light Nuclear Core Propulsion Wheel Leg Aluminum Leg Wheel Wheel Utility Small Storage Unit Device Improved Terrain Scanner Storage Small Storage Unit Hackware Hacking Suite Protection Light Armor Plating Weapon Improved Light Cannon Energy Gun Pulse Rifle Energy Cannon Ion Cannon Ballistic Gun Light Assault Rifle Ballistic Cannon Improved Light Cannon Special Weapon Mining Laser Slashing Weapon Katana Special Melee Weapon Datajack Build | -11 -10 -9 -9 -8 ------- Run | Yrd Mat Mat Min Mat Slots Evolved 4 | . . 2 . 2 Power . | . . . . . Propulsion 1 | . . 1 . . Utility 3 | . . 1 . 2 Weapon . | . . . . . Parts Attached 42 | 8 2 9 1 22 Power 5 | 1 . 1 . 3 Engine 4 | 1 . 1 . 2 Core 1 | . . . . 1 Reactor . | . . . . . Propulsion 13 | 3 . 5 . 5 Treads . | . . . . . Leg 5 | . . . . 5 Wheel 8 | 3 . 5 . . Hover . | . . . . . Flight . | . . . . . Utility 10 | 2 . 1 . 7 Device 6 | 1 . 1 . 4 Storage 2 | 1 . . . 1 Processor . | . . . . . Hackware 1 | . . . . 1 Protection 1 | . . . . 1 Artifact . | . . . . . Weapon 14 | 2 2 2 1 7 Energy Gun 3 | 1 . 1 . 1 Energy Cannon 3 | . . . . 3 Ballistic Gun 1 | 1 . . . . Ballistic Cannon 3 | . 2 . 1 . Launcher . | . . . . . Special Weapon 1 | . . 1 . . Impact Weapon . | . . . . . Slashing Weapon 1 | . . . . 1 Piercing Weapon . | . . . . . Special Melee Weapon 2 | . . . . 2 Unidentified Prototypes . | . . . . . Parts Lost 19 | . . 2 . 17 Power 2 | . . . . 2 Propulsion 9 | . . 2 . 7 Utility 6 | . . . . 6 Weapon 2 | . . . . 2 Highest Loss Streak 8 | . . 1 . 8 To Critical Strikes 1 | . . . . 1 Average Slot Usage (%) 93 | . 100 99 100 86 Engine 8 | . 14 11 11 5 Core 1 | . . . . 2 Leg 5 | . . . . 11 Wheel 21 | . 28 32 33 10 Device 22 | . 14 21 22 24 Storage 9 | . 14 11 11 6 Hackware 1 | . . . . 4 Protection 1 | . . . . 4 Energy Gun 2 | . 4 1 11 3 Energy Cannon 3 | . . . . 8 Ballistic Cannon 13 | . 23 20 11 3 Peak Build Rating 26 | 9 11 14 14 26 Average Rating 14 | 5 10 13 14 18 On Entrance 9 | . 9 11 13 14 Naked Turns . | . . . . . Heaviest Build 27 | 11 17 18 17 27 Greatest Support 44 | 26 20 30 30 44 Greatest Overweight (x) 7 | . . . . 7 Average Overweight (x) . | . . . . . Largest Inventory Capacity 10 | 8 8 8 8 10 Average Capacity 7 | 7 8 8 8 7 Most Carried 10 | 6 8 8 8 10 Average Carried 6 | 2 7 7 8 6 Final Capacity 10 | 8 8 8 8 10 Final Carried 10 | 6 8 8 8 10 Class Distribution -------------------- 75% | Scavenger-Mutant 24% | Mutant Dominant Class ---------------- Mutant | -10/Materials Scavenger-Mutant | -9/Materials Scavenger-Mutant | -9/Mines Scavenger-Mutant | -8/Materials Resources | -11 -10 -9 -9 -8 ----------- Run | Yrd Mat Mat Min Mat Matter Collected 1000 | 248 42 236 4 470 Remotely . | . . . . . Salvage Created 1403 | 62 52 362 4 923 Parts 112 | 10 12 33 1 56 Haulers Intercepted 1 | . . . . 1 Recyclers Shooed 2 | 1 . 1 . . Parts Field Recycled . | . . . . . Retrieved Matter . | . . . . . Parts Self-Destructed . | . . . . . Prevented . | . . . . . Kills | -11 -10 -9 -9 -8 ------- Run | Yrd Mat Mat Min Mat Combat Hostiles Destroyed 31 | . 3 12 . 16 Melee 2 | . . . . 2 Guns 5 | . . 2 . 3 Cannons 23 | . 3 10 . 10 Classes Destroyed 12 | 1 3 4 . 4 Worker 3 | . . 1 . 2 Builder 4 | . 3 . . 1 Tunneler 5 | 3 . 1 1 . Hauler 1 | . . . . 1 Mechanic 1 | . . . . 1 Operator 2 | . 1 . . 1 Watcher 5 | . . 1 . 4 Swarmer 9 | . 3 3 . 3 Grunt 15 | . . 7 . 8 Duelist 1 | . . . . 1 Sentry 4 | . . 2 . 2 Specialist 2 | . . . . 2 Best Kill Streak 6 | 2 4 6 1 4 Combat Bots Only 5 | . 3 5 . 2 Max Kills in Single Turn 4 | 1 1 1 1 4 Gunslinging . | . . . . . Exploded . | . . . . . Melee 1 | . . . . 1 Uniques/NPCs Destroyed . | . . . . . Combat | -11 -10 -9 -9 -8 -------- Run | Yrd Mat Mat Min Mat Hostile Shots Fired 247 | . 28 46 . 173 Missed 73 | . 7 12 . 54 Damage Taken 2512 | . 163 387 . 1962 Core 670 | . 61 58 . 551 Absorbed by Shields . | . . . . . Core Remaining (%) 86 | 100 75 . 85 . Volleys Fired 153 | 12 23 35 5 78 Largest 2 | 1 2 2 2 2 Hottest 128 | 40 78 100 95 128 Shots Fired 274 | 12 36 68 10 148 Gun 42 | 12 . 11 5 14 Cannon 230 | . 36 55 5 134 Launcher . | . . . . . Special 2 | . . 2 . . Kinetic 110 | . 36 55 5 14 Thermal 164 | 12 . 13 5 134 Explosive . | . . . . . Electromagnetic . | . . . . . Robot Hit Streak 14 | 5 14 5 8 10 Robot Miss Streak 4 | 2 3 4 2 4 Penetration Max . | . . . . . Secondary Targets . | . . . . . Shots Hit Robots 171 | 8 18 34 5 106 Core Hits 64 | 4 6 17 1 36 Critical Kills . | . . . . . Critical Parts Destroyed . | . . . . . Critical Strikes 4 | . . 1 . 3 Burn 1 | . . 1 . . Sever 3 | . . . . 3 Melee Attacks 15 | . . . . 15 Impact . | . . . . . Slashing 14 | . . . . 14 Piercing . | . . . . . Sneak Attacks . | . . . . . Combat Hostiles . | . . . . . Follow-up Attacks . | . . . . . Damage Inflicted 4361 | 88 440 651 87 3095 Guns 392 | 88 . 102 45 157 Cannons 2918 | . 440 549 42 1887 Explosions 698 | . . . . 698 Melee 353 | . . . . 353 Ramming . | . . . . . Kinetic 1222 | . 440 549 42 191 Thermal 2088 | 88 . 102 45 1853 Explosive 698 | . . . . 698 Electromagnetic . | . . . . . Impact . | . . . . . Slashing 353 | . . . . 353 Piercing . | . . . . . Highest Corruption . | . . . . . Average Corruption . | . . . . . Corruption Purged . | . . . . . Corruption Blocked . | . . . . . Overload Shots . | . . . . . Overflow Damage 194 | . 24 . . 170 Projectiles 45 | . 24 . . 21 Explosions 149 | . . . . 149 Melee . | . . . . . Knockbacks 21 | . 7 11 . 3 Impact . | . . . . . Kinetic 17 | . 6 8 . 3 Secondary 4 | . 1 3 . . Self-Inflicted Damage . | . . . . . Shots . | . . . . . Rammed . | . . . . . Targets Rammed . | . . . . . Kicked . | . . . . . Crushed . | . . . . . Highest Temperature 373 | . 178 207 72 373 Average Temperature 81 | . 99 55 26 93 Received Heat Transfer 873 | . . 162 . 711 Effects 3 | . . . . 3 Interference 2 | . . . . 2 Damage (minor) 1 | . . . . 1 Siege Activations . | . . . . . Robots Corrupted . | . . . . . Combat Hostiles . | . . . . . Parts Fried . | . . . . . Impact Corruptions . | . . . . . Robots Melted 1 | . . . . 1 Combat Hostiles 1 | . . . . 1 Parts Melted 3 | . . . 1 2 Heat Transferred 3863 | 200 . 333 111 3219 Parts Sabotaged . | . . . . . Parts Stolen . | . . . . . Parts Stripped . | . . . . . Power Chain Reactions . | . . . . . Alert | -11 -10 -9 -9 -8 ------- Run | Yrd Mat Mat Min Mat Peak Influence 394 | 15 97 394 59 256 Initial 54 | . 9 33 54 22 Average 64 | 9 36 53 57 88 Maximum Alert Level 1 | . . 1 . 1 Low Security (%) 90 | 100 100 89 100 86 Level 1 9 | . . 10 . 13 Level 2 . | . . . . . Level 3 . | . . . . . Level 4 . | . . . . . Level 5 . | . . . . . High Security . | . . . . . Max Security . | . . . . . Squads Dispatched 7 | . . 2 . 5 Investigation 2 | . . . . 2 Extermination . | . . . . . Reinforcement 5 | . . 2 . 3 Assault . | . . . . . Garrison . | . . . . . Intercept . | . . . . . Searches Triggered . | . . . . . Construction Impeded 1 | . . 1 . . Haulers Reinforced . | . . . . . Active Scanning Responses . | . . . . . Cargo Convoy Interrupts . | . . . . . Stealth | -11 -10 -9 -9 -8 --------- Run | Yrd Mat Mat Min Mat Distress Signals 1 | . . 1 . . Communications Jammed . | . . . . . Distress Signals . | . . . . . Times Spotted 60 | . 8 17 . 35 Peak Tracking Total 5 | . 4 5 . 5 Tactical Retreats 9 | . 1 1 . 7 Traps | -11 -10 -9 -9 -8 ------- Run | Yrd Mat Mat Min Mat Traps Triggered . | . . . . . Indirectly . | . . . . . Trap Hack Attempts . | . . . . . Triggered . | . . . . . Disarmed . | . . . . . Reprogrammed . | . . . . . Reused . | . . . . . Traps Extracted . | . . . . . Installed . | . . . . . Triggered . | . . . . . Objects Rigged 2 | . . . . 2 Exploded 2 | . . . . 2 Machines | -11 -10 -9 -9 -8 ---------- Run | Yrd Mat Mat Min Mat Machines Disabled 4 | . 1 . . 3 Max in Single Turn 1 | . 1 . . 1 Machines Repaired . | . . . . . Machines Dismantled . | . . . . . Machines Sabotaged . | . . . . . Overloaded Fab Kills . | . . . . . Hacking | -11 -10 -9 -9 -8 --------- Run | Yrd Mat Mat Min Mat Machines Accessed 7 | . . 1 . 6 Terminals 7 | . . 1 . 6 Fabricators . | . . . . . Repair Stations . | . . . . . Recycling Units . | . . . . . Scanalyzers . | . . . . . Garrison Access . | . . . . . Total Hacks 24 | . . 5 . 19 Successful 12 | . . 3 . 9 Failed 12 | . . 2 . 10 Catastrophic 1 | . . . . 1 Database Lockouts . | . . . . . Manual 13 | . . 3 . 10 Terminals 24 | . . 5 . 19 Fabricators . | . . . . . Repair Stations . | . . . . . Recycling Units . | . . . . . Scanalyzers . | . . . . . Garrison Access . | . . . . . Terminal Hacks 11 | . . 3 . 8 Terminal Index 1 | . . . . 1 Alert Level 4 | . . 1 . 3 Unreport Threat 3 | . . 1 . 2 Recall Investigation 1 | . . . . 1 Zone Layout 2 | . . 1 . 1 Fabricator Hacks . | . . . . . Repair Station Hacks . | . . . . . Recycling Unit Hacks . | . . . . . Scanalyzer . | . . . . . Garrison Access Hacks . | . . . . . Unauthorized Hacks 1 | . . . . 1 Terminals 1 | . . . . 1 Detonate 1 | . . . . 1 Fabricators . | . . . . . Repair Stations . | . . . . . Recycling Units . | . . . . . Scanalyzers . | . . . . . Garrison Access . | . . . . . Data Cores Recovered 1 | . 1 . . . Used . | . . . . . Hacking Detections 6 | . . 1 . 5 Full Trace Events 2 | . . . . 2 Feedback Events . | . . . . . Feedback Blocked . | . . . . . Robot Schematics Acquired . | . . . . . Robots Built . | . . . . . Authchips . | . . . . . Time . | . . . . . Total Robot Build Rating . | . . . . . Part Schematics Acquired . | . . . . . Parts Built . | . . . . . Authchips . | . . . . . Time . | . . . . . Total Part Build Rating . | . . . . . Parts Repaired . | . . . . . Time . | . . . . . Parts Recycled . | . . . . . Recycled Matter . | . . . . . Retrieved Matter . | . . . . . Retrieved Components . | . . . . . Parts Scanalyzed . | . . . . . Part Schematics Acquired . | . . . . . Parts Damaged . | . . . . . Bothacking | -11 -10 -9 -9 -8 ------------ Run | Yrd Mat Mat Min Mat Used RIF Installer . | . . . . . Robots Hacked 1 | . . . . 1 Non-combat 1 | . . . . 1 Combat . | . . . . . Robot Hacks Applied 1 | . . . . 1 no_distress 1 | . . . . 1 Relay Couplers Released . | . . . . . Fabnet Peak Effective % . | . . . . . Robots Rewired . | . . . . . Allies Hacked . | . . . . . Hacks Repelled . | . . . . . Allies | -11 -10 -9 -9 -8 -------- Run | Yrd Mat Mat Min Mat Total Allies . | . . . . . Largest Group . | . . . . . Highest-Rated Group . | . . . . . Highest-Rated Ally . | . . . . . Total Orders . | . . . . . Ally Attacks . | . . . . . Total Damage . | . . . . . Kills . | . . . . . Allies Corrupted . | . . . . . Allies Melted . | . . . . . Intel | -11 -10 -9 -9 -8 ------- Run | Yrd Mat Mat Min Mat Robot Analysis Total . | . . . . . Derelict Logs Recovered . | . . . . . Drone Launches . | . . . . . Drone Recoveries . | . . . . . Exploration | -11 -10 -9 -9 -8 ------------- Run | Yrd Mat Mat Min Mat Turns Passed 3243 | 125 423 1245 39 1411 Spaces Moved 992 | 101 187 193 28 483 Core 9 | 1 . . . 8 Treads . | . . . . . Legs 357 | . . . . 357 Wheels 626 | 100 187 193 28 118 Hover . | . . . . . Flight . | . . . . . Fastest Speed 50 | 50 80 80 80 80 Average Speed 102 | 81 80 80 80 125 Slowest Speed 400 | 90 80 80 80 400 Overloaded Moves . | . . . . . Propulsion Burnouts . | . . . . . Robots Hopped . | . . . . . Cave-ins Triggered . | . . . . . Exploration Rate (%) 21 | 5 32 19 7 43 Regions Visited 4 Branch Regions 1 Pre-discovered Areas . | . . . . . Known Exits Taken . | . . . . . Unknown Exits Taken 4 | 1 1 1 1 . Scrap Searched . | . . . . . Spaces Dug 3 | . 1 2 . . Terrain Destroyed 76 | . 3 4 . 69 Melee . | . . . . . Projectile 15 | . 3 4 . 8 AOE 61 | . . . . 61 Terrain Rammed . | . . . . . Walls Destroyed . | . . . . . Machines Disabled . | . . . . . Actions | -11 -10 -9 -9 -8 --------- Run | Yrd Mat Mat Min Mat Total 2912 | 128 426 1211 33 1114 Wait 1672 | . 203 966 . 503 Move 988 | 100 186 192 27 483 Hop . | . . . . . Pick Up 25 | 6 6 4 . 9 Fast Attach 21 | 8 1 2 . 10 Attach 8 | . . 3 . 5 Detach 3 | 1 1 1 . . Swap 13 | . 1 4 1 7 Drop 14 | 1 5 4 . 4 Fire 153 | 12 23 35 5 78 Melee 15 | . . . . 15 Ram . | . . . . . Kick . | . . . . . Crush . | . . . . . Escape Stasis . | . . . . . Rewire . | . . . . . Trap . | . . . . . Miscellaneous . | . . . . . Route ------- -11/Scrapyard -10/Materials -9/Materials -9/Mines -8/Materials History --------- Turn | Location | Event 47 | -11/Scrapyard | Discovered new exit (range 15) 126 | -11/Scrapyard | Entered Materials 304 | -10/Materials | Build established: Mutant 547 | -10/Materials | Discovered new exit (range 3) 549 | -10/Materials | Entered another Materials area 549 | -9/Materials | Evolved 2 slots: Propulsion x1, Utility x1 862 | -9/Materials | Build established: Scavenger-Mutant 1765 | -9/Materials | Discovered new exit (range 13) 1794 | -9/Materials | Entered Mines 1826 | -9/Mines | Discovered new exit (range 5) 1833 | -9/Mines | Entered Materials 1833 | -8/Materials | Evolved 2 slots: Utility x2 2445 | -8/Materials | Lost 3 parts (2n1u) 2593 | -8/Materials | Lost 4 parts (1p3u) 3076 | -8/Materials | Core integrity fell below 50% 3135 | -8/Materials | Lost 8 parts (1p3n2u2w) 3230 | -8/Materials | Core integrity fell below 20% 3244 | -8/Materials | Destroyed by X-62 Marksman with Pulse Rifle Last Messages --------------- 03102_ Penetrated by Slug. 03104_ Ion Cannon destroyed. 03108_ U-05 Engineer builds a Door. 03126_ Slug penetrates Wall. 03133_ X-62 Marksman Gauss Rifle severed. 03135_ Critical hit (Burn: +37). 03135_ X-62 Marksman Imp. Carbon-fiber Leg severed. 03138_ X-62 Marksman destroyed. 03144_ Acquired Imp. Carbon-fiber Leg. 03154_ Acquired 30 matter. 03158_ ALERT: Suspicious intruders detected, dispatching Specialist reinforcements to area. 03164_ Acquired Hvy. Assault Rifle. 03195_ Slug penetrates Wall. 03221_ X-62 Marksman Imp. Carbon-fiber Leg severed. 03222_ Penetrated by Slug. 03231_ Imp. Carbon-fiber Leg destroyed. 03234_ X-62 Marksman destroyed. 03235_ Slug penetrates Wall. 03238_ Penetrated by Slug. Map ----- +----------------------------------------------------+ | # ?????????????? | | # ?????????????? | | # ?????????????? | | # ######## ###+###????????? | | # #########^^ ## #????????? | | # # # ## """ #????????? | | # # T # ## """ #????????? | | # + # ## """ ########## | | # # # ## ## # | | # ######### ## = ## # | | # ######### ## ## # | | ####### ####+### # | | # # | | [%= + # | | ! % # # | | ####### %*= ###### # # | | ##############+######## # # | | #######???# ![[ #??# # # | | ??????????# ! #??# # # | | ??????????# #??# ######### | | ??????????# #??# #???????? | | ??????????# #??# #??###### | | ??????????# #??#!#?? # | | ??????????# #?##=## """# | | ??????????# #?# %!# """# | | ??????????# = #?# @ """# | | ??????????##########?# #x # | | ???????????? ????##### ! # | | ???????????????????????????#####? | | ????????????????????????????????? | | ????????????????????????????????? | | ????????????????????????????????? | | ????????????????????????????????? | | ????????????????????????????????? | | ????????????????????????????????? | | ????????????????????????????????? | | ????????????????????????????????? | | ????????????????????????????????? | | ????????????????????????????????? | | ????????????????????????????????? | | ????????????????????????????????? | | ????????????????????????????????? | | ????????????????????????????????? | | ????????????????????????????????? | | ????????????????????????????????? | | ????????????????????????????????? | | ????????????????????????????????? | | ????????????????????????????????? | | ????????????????????????????????? | | ????????????????????????????????? | +----------------------------------------------------+ Best States ------------- Heat Dissipation 45 Energy Generation 16 Energy Capacity 290 Matter Stores 300 Matter Capacity 300 Sight Range 16 Terrain Scan Range 16 Terrain Scan Density 10 ECM Strength 1 Additional Mass Support 6 Armor Coverage 150 Evasion (%) 55 Offensive Hacking 10 Item Schematics ----------------- None Robot Schematics ------------------ None Fabricated ------------ Nothing Alien Tech Used ----------------- None Achievements -------------- None Challenges ------------ None Game ------ Seed AblativeAerolevProtomatter Manual? 0 Play Time 00:32:12 Cumulative 226.0 hours Start 2024.12.11 @ 11:48:35 End 2024.12.11 @ 12:19:14 Sessions 1 Manual Loads 0 Difficulty Rogue Special Mode None Game No. 351 Rogue 351 Adventurer 0 Explorer 0 Win Type - Total 0 Types 0/0/0/0/0/0/0/0/0 Lore% 38 Gallery% 56 Achievement% 41 Wizard Run 0 Options --------- Layout 0 ASCII 0 Keyboard 0 Movement Mouse Keybinds 0 Fullscreen 1 Font 18/SmallcapsGlow Map View 76x50 Zoom Use 0% Tactical HUD 1 Map Filters NONE Filters NONE Steam 1 RUN: cf67883d-4ca3-4bfb-8bae-76bac0905334